fUSD/lending_fUSD_20240215
["ID","MTS","AMOUNT","RATE_DAILY","PERIOD"]
[314116344,1707996632308,-35227.38235733,0.0003751,2]
[314116345,1707996632322,-23616.40124267,0.0003751,2]
[314116346,1707996632332,-257.27043078,0.00037524,2]
[314116347,1707996632343,-23900.0,0.00037529,2]
[314116348,1707996632353,-166.12,0.00037568,2]
[314116349,1707996632363,-250.0,0.00037573,111]
[314116350,1707996632374,-2705.0,0.00037589,2]
[314116351,1707996632384,-1196.29,0.0003761,2]
[314116352,1707996632394,-150.0,0.00037624,2]
[314116353,1707996632408,-159.21,0.00037633,2]
[314116354,1707996632418,-2000.0,0.00037635,2]
[314116355,1707996632428,-250.0,0.00037693,2]
[314116356,1707996632438,-154.22,0.000377,3]
[314116357,1707996632447,-154.22,0.000377,3]
[314116358,1707996632456,-154.38,0.00037716,2]
[314116359,1707996632466,-2567.0,0.000378,3]
[314116360,1707996632477,-157.54,0.00037827,2]
[314116361,1707996632486,-546.74,0.00037857,2]
[314116362,1707996632499,-11353.0,0.000379,3]
[314116363,1707996632509,-257.27043069,0.00038232,2]
[314116364,1707996632518,-3791.44,0.00038356,15]
[314116365,1707996632528,-266.41,0.00038361,2]
[314116366,1707996632537,-1000.0,0.00038397,2]
[314116367,1707996632546,-1131.45592643,0.000384,7]
[314116368,1707996632555,-156.52167481,0.00038421,2]
[314116369,1707996632565,-20034.562,0.00038501,2]
[314116370,1707996632576,-166.37,0.00038601,2]
[314116371,1707996632585,-154.22,0.000388,3]
[314116372,1707996632595,-154.22,0.000388,3]
[314116373,1707996632605,-157.47884496,0.00039,60]
[314116374,1707996632614,-288.64,0.0003902,2]
[314116375,1707996632624,-310.6357,0.00039252,2]
[314116376,1707996632634,-167.87,0.0003926,2]
[314116377,1707996632644,-151.39,0.00039346,5]
[314116378,1707996632653,-150.5,0.00039347,5]
[314116379,1707996632664,-20069.82492399,0.00039352,2]
[314116380,1707996632674,-719.29797262,0.00039352,5]
[314116381,1707996632684,-2869.1009,0.00039352,2]
[314116382,1707996632695,-1000.0,0.00039352,2]
[314116383,1707996632705,-166.0,0.000394,2]
[314116384,1707996632717,-213.16702277,0.00039452,7]
[314116385,1707996632730,-500.0,0.00039452,7]
[314116386,1707996632741,-500.0,0.00039452,7]
[314116387,1707996632753,-500.0,0.00039452,7]
[314116388,1707996632763,-500.0,0.00039452,7]
[314116389,1707996632774,-498.77940096,0.00039452,7]
[314116390,1707996632788,-218.23859595,0.00039452,7]
[314116391,1707996632799,-534.89122222,0.00039452,7]
[314116392,1707996632810,-352.88724698,0.00039452,7]
[314116393,1707996632825,-500.0,0.00039452,7]
[314116394,1707996632836,-500.0,0.00039452,7]
[314116395,1707996632847,-500.0,0.00039452,7]
[314116396,1707996632858,-579.34357023,0.00039452,7]
[314116397,1707996632870,-500.0,0.00039452,7]
[314116398,1707996632881,-500.0,0.00039452,7]
[314116399,1707996632892,-500.0,0.00039452,7]
[314116400,1707996632903,-500.0,0.00039452,7]
[314116401,1707996632913,-500.0,0.00039452,7]
[314116402,1707996632924,-500.0,0.00039452,7]
[314116403,1707996632934,-500.0,0.00039452,7]
[314116404,1707996632944,-500.0,0.00039452,7]
[314116405,1707996632955,-500.0,0.00039452,7]
[314116406,1707996632965,-500.0,0.00039452,7]
[314116407,1707996632980,-500.0,0.00039452,7]
[314116408,1707996632993,-500.0,0.00039452,7]
[314116409,1707996633003,-500.0,0.00039452,7]
[314116410,1707996633014,-500.0,0.00039452,7]
[314116411,1707996633025,-602.3927958,0.00039452,7]
[314116412,1707996633036,-500.0,0.00039452,7]
[314116413,1707996633047,-500.0,0.00039452,7]
[314116414,1707996633058,-5615.0,0.00039471,2]
[314116415,1707996633069,-2100.1158,0.00039626,2]
[314116416,1707996633080,-500.0,0.00039725,7]
[314116417,1707996633090,-500.0,0.00039725,7]
[314116418,1707996633101,-528.03,0.00039725,7]
[314116419,1707996633112,-500.0,0.00039725,7]
[314116420,1707996633123,-500.0,0.00039725,7]
[314116421,1707996633134,-568.58,0.00039725,7]
[314116422,1707996633144,-514.18,0.00039725,7]
[314116423,1707996633155,-500.0,0.00039725,7]
[314116424,1707996633166,-500.0,0.00039725,7]
[314116425,1707996633177,-596.92768253,0.00039725,7]
[314116426,1707996633187,-500.0,0.00039725,7]
[314116427,1707996633198,-500.0,0.00039725,7]
[314116428,1707996633209,-587.85,0.00039725,7]
[314116429,1707996633218,-500.0,0.00039725,7]
[314116430,1707996633238,-500.0,0.00039725,7]
[314116431,1707996633248,-500.0,0.00039725,7]
[314116432,1707996633258,-500.0,0.00039725,7]
[314116433,1707996633268,-500.0,0.00039725,7]
[314116434,1707996633277,-500.0,0.00039725,7]
[314116435,1707996633288,-500.0,0.00039725,7]
[314116436,1707996633297,-500.0,0.00039725,7]
[314116437,1707996633307,-500.0,0.00039725,7]
[314116438,1707996633318,-500.0,0.00039726,7]
[314116439,1707996633328,-530.39,0.00039726,7]
[314116440,1707996633344,-500.0,0.00039726,7]
[314116441,1707996633359,-500.0,0.00039726,7]
[314116442,1707996633370,-157.54,0.00039798,2]
[314116443,1707996633380,-175.9115642,0.00039799,9]
[314116444,1707996633390,-500.0,0.00039854,7]
[314116445,1707996633403,-500.0,0.00039854,7]
[314116446,1707996633414,-500.0,0.00039854,7]
[314116447,1707996633425,-500.0,0.00039854,7]
[314116448,1707996633440,-322.06047401,0.00039854,7]
[314116449,1707996633452,-500.0,0.00039854,7]
[314116450,1707996633463,-636.91,0.00039854,7]
[314116451,1707996633474,-500.0,0.00039854,7]
[314116452,1707996633487,-500.0,0.00039855,7]
[314116453,1707996633498,-500.0,0.00039855,7]
[314116454,1707996633509,-590.53,0.00039855,7]
[314116455,1707996633521,-500.0,0.00039855,7]
[314116456,1707996633532,-500.0,0.00039855,7]
[314116457,1707996633543,-571.4,0.00039855,7]
[314116458,1707996633556,-898.28,0.00039855,7]
[314116459,1707996633567,-500.0,0.00039855,7]
[314116460,1707996633577,-500.0,0.00039855,7]
[314116461,1707996633587,-500.0,0.00039855,7]
[314116462,1707996633598,-523.38,0.00039855,7]
[314116463,1707996633608,-500.0,0.00039855,7]
[314116464,1707996633617,-500.0,0.00039855,7]
[314116465,1707996633626,-500.0,0.00039855,7]
[314116466,1707996633636,-500.0,0.00039855,7]
[314116467,1707996633647,-500.0,0.00039855,7]
[314116468,1707996633657,-500.0,0.00039855,7]
[314116469,1707996633667,-576.16,0.00039855,7]
[314116470,1707996633676,-500.0,0.00039855,7]
[314116471,1707996633685,-500.0,0.00039855,7]
[314116472,1707996633695,-500.0,0.00039855,7]
[314116473,1707996633705,-500.0,0.00039855,7]
[314116474,1707996633714,-500.0,0.00039855,7]
[314116475,1707996633723,-500.0,0.00039855,7]
[314116476,1707996633736,-500.0,0.00039855,7]
[314116477,1707996633745,-500.0,0.00039855,7]
[314116478,1707996633755,-354.43265713,0.00039855,7]
[314116479,1707996633764,-500.0,0.00039855,7]
[314116480,1707996633776,-500.0,0.00039855,7]
[314116481,1707996633785,-500.0,0.00039855,7]
[314116482,1707996633795,-500.0,0.00039855,7]
[314116483,1707996633805,-500.0,0.00039855,7]
[314116484,1707996633815,-500.0,0.00039855,7]
[314116485,1707996633828,-569.91979059,0.00039855,7]
[314116486,1707996633838,-500.0,0.00039855,7]
[314116487,1707996633848,-613.04,0.00039855,7]
[314116488,1707996633858,-500.0,0.00039855,7]
[314116489,1707996633868,-500.0,0.00039855,7]
[314116490,1707996633878,-500.0,0.00039855,7]
[314116491,1707996633892,-500.0,0.00039855,7]
[314116492,1707996633903,-500.0,0.00039855,7]
[314116493,1707996633914,-500.0,0.00039855,7]
[314116494,1707996633925,-500.0,0.00039855,7]
[314116495,1707996633935,-500.0,0.00039855,7]
[314116496,1707996633948,-500.0,0.00039855,7]
[314116497,1707996633958,-500.0,0.00039855,7]
[314116498,1707996633969,-500.0,0.00039855,7]
[314116499,1707996633982,-500.0,0.00039855,7]
[314116500,1707996633992,-523.32,0.00039855,7]
[314116501,1707996634003,-500.0,0.00039855,7]
[314116502,1707996634013,-589.60876854,0.00039855,7]
[314116503,1707996634024,-662.96,0.00039855,7]
[314116504,1707996634033,-500.0,0.00039855,7]
[314116505,1707996634043,-500.0,0.00039855,7]
[314116506,1707996634053,-500.0,0.00039855,7]
[314116507,1707996634062,-583.09164613,0.00039855,7]
[314116508,1707996634072,-500.0,0.00039855,7]
[314116509,1707996634081,-500.0,0.00039855,7]
[314116510,1707996634092,-500.0,0.00039855,7]
[314116511,1707996634101,-500.0,0.00039855,7]
[314116512,1707996634111,-500.0,0.00039855,7]
[314116513,1707996634120,-500.0,0.00039855,7]
[314116514,1707996634130,-500.0,0.00039855,7]
[314116515,1707996634140,-500.0,0.00039855,7]
[314116516,1707996634153,-635.32,0.00039855,7]
[314116517,1707996634163,-500.0,0.00039855,7]
[314116518,1707996634172,-500.0,0.00039855,7]
[314116519,1707996634182,-500.0,0.00039855,7]
[314116520,1707996634192,-500.0,0.00039855,7]
[314116521,1707996634203,-500.0,0.00039855,7]
[314116522,1707996634214,-500.0,0.00039855,7]
[314116523,1707996634223,-500.0,0.00039855,7]
[314116524,1707996634236,-500.0,0.00039855,7]
[314116525,1707996634245,-500.0,0.00039855,7]
[314116526,1707996634255,-500.0,0.00039855,7]
[314116527,1707996634264,-510.85197071,0.00039855,7]
[314116528,1707996634274,-500.0,0.00039855,7]
[314116529,1707996634283,-500.0,0.00039855,7]
[314116530,1707996634293,-500.0,0.00039855,7]
[314116531,1707996634302,-500.0,0.00039855,7]
[314116532,1707996634313,-500.0,0.00039856,7]
[314116533,1707996634322,-500.0,0.00039856,7]
[314116534,1707996634331,-500.0,0.00039856,7]
[314116535,1707996634340,-500.0,0.00039856,7]
[314116536,1707996634350,-500.0,0.00039856,7]
[314116537,1707996634359,-500.0,0.00039856,7]
[314116538,1707996634368,-500.0,0.00039856,7]
[314116539,1707996634378,-500.0,0.00039856,7]
[314116540,1707996634387,-500.0,0.00039856,7]
[314116541,1707996634396,-500.0,0.00039856,7]
[314116542,1707996634405,-500.0,0.00039856,7]
[314116543,1707996634414,-500.0,0.00039856,7]
[314116544,1707996634424,-500.0,0.00039856,7]
[314116545,1707996634436,-500.0,0.00039856,7]
[314116546,1707996634445,-500.0,0.00039856,7]
[314116547,1707996634455,-500.0,0.00039856,7]
[314116548,1707996634464,-500.0,0.00039856,7]
[314116549,1707996634473,-500.0,0.00039856,7]
[314116550,1707996634485,-500.0,0.00039856,7]
[314116551,1707996634494,-500.0,0.00039856,7]
[314116552,1707996634503,-500.0,0.00039856,7]
[314116553,1707996634513,-500.0,0.00039856,7]
[314116554,1707996634522,-500.0,0.00039856,7]
[314116555,1707996634531,-500.0,0.00039856,7]
[314116556,1707996634541,-500.0,0.00039856,7]
[314116557,1707996634551,-500.0,0.00039856,7]
[314116558,1707996634560,-500.0,0.00039856,7]
[314116559,1707996634570,-500.0,0.00039856,7]
[314116560,1707996634579,-500.0,0.00039856,7]
[314116561,1707996634589,-500.0,0.00039856,7]
[314116562,1707996634598,-3854.04,0.00039856,7]
[314116563,1707996634607,-526.73,0.00039856,7]
[314116564,1707996634617,-529.0,0.00039856,7]
[314116565,1707996634626,-500.0,0.00039856,7]
[314116566,1707996634636,-20069.82492398,0.00039857,2]
[314116567,1707996634645,-1729.43925592,0.0003989,10]
[314116568,1707996634655,-208.3795768,0.0003989,12]
[314116569,1707996634664,-1642.5132,0.00039899,120]
[314116570,1707996634674,-3736.36226113,0.000399,13]
[314116571,1707996634683,-154.22,0.000399,3]
[314116572,1707996634692,-154.22,0.000399,3]
[314116573,1707996634702,-200.0,0.00039987,4]
[314116574,1707996634711,-17294.3925592,0.00039989,10]
[314116575,1707996634721,-3458.87851184,0.0003999,10]
[314116576,1707996634733,-500.0,0.00039999,7]
[314116577,1707996634742,-500.0,0.00039999,7]
[314116578,1707996634752,-500.0,0.00039999,7]
[314116579,1707996634761,-500.0,0.00039999,7]
[314116580,1707996634771,-500.0,0.00039999,7]
[314116581,1707996634782,-500.0,0.00039999,7]
[314116582,1707996634792,-500.0,0.00039999,7]
[314116583,1707996634801,-500.0,0.00039999,7]
[314116584,1707996634810,-500.0,0.00039999,7]
[314116585,1707996634823,-255.03546,0.00039999,7]
[314116586,1707996634833,-541.10153896,0.00039999,7]
[314116587,1707996634843,-554.59446415,0.00039999,7]
[314116588,1707996634852,-523.29504202,0.00039999,7]
[314116589,1707996634862,-500.0,0.00039999,7]
[314116590,1707996634871,-561.1797793,0.00039999,7]
[314116591,1707996634880,-500.0,0.00039999,7]
[314116592,1707996634890,-500.0,0.00039999,2]
[314116593,1707996634901,-500.0,0.00039999,7]
[314116594,1707996634911,-759.01,0.00039999,7]
[314116595,1707996634920,-500.0,0.00039999,7]
[314116596,1707996634929,-500.0,0.00039999,7]
[314116597,1707996634939,-467.17416289,0.00039999,7]
[314116598,1707996634949,-233.54,0.00039999,7]
[314116599,1707996634959,-500.0,0.00039999,7]
[314116600,1707996634968,-500.0,0.00039999,7]
[314116601,1707996634981,-500.0,0.00039999,7]
[314116602,1707996634991,-500.0,0.00039999,7]
[314116603,1707996635000,-500.0,0.00039999,7]
[314116604,1707996635010,-500.0,0.00039999,7]
[314116605,1707996635020,-500.0,0.00039999,7]
[314116606,1707996635030,-524.06,0.00039999,7]
[314116607,1707996635041,-500.0,0.00039999,7]
[314116608,1707996635051,-500.0,0.00039999,7]
[314116609,1707996635061,-500.0,0.00039999,7]
[314116610,1707996635071,-500.0,0.00039999,7]
[314116611,1707996635081,-150.0,0.00039999,7]
[314116612,1707996635091,-500.0,0.00039999,7]
[314116613,1707996635100,-500.0,0.00039999,7]
[314116614,1707996635110,-500.0,0.00039999,7]
[314116615,1707996635120,-500.0,0.00039999,7]
[314116616,1707996635130,-500.0,0.00039999,7]
[314116617,1707996635141,-500.0,0.00039999,7]
[314116618,1707996635150,-500.0,0.00039999,7]
[314116619,1707996635160,-500.0,0.00039999,7]
[314116620,1707996635170,-577.93,0.00039999,7]
[314116621,1707996635181,-500.0,0.00039999,7]
[314116622,1707996635190,-1331.12768345,0.00039999,2]
[314116623,1707996635200,-500.0,0.00039999,7]
[314116624,1707996635209,-618.79,0.00039999,7]
[314116625,1707996635219,-500.0,0.00039999,7]
[314116626,1707996635231,-500.0,0.00039999,7]
[314116627,1707996635240,-500.0,0.00039999,7]
[314116628,1707996635250,-500.0,0.00039999,7]
[314116629,1707996635260,-553.88426579,0.00039999,7]
[314116630,1707996635269,-500.0,0.00039999,7]
[314116631,1707996635279,-500.0,0.00039999,7]
[314116632,1707996635289,-581.80419305,0.00039999,7]
[314116633,1707996635298,-500.0,0.00039999,7]
[314116634,1707996635308,-570.94235557,0.00039999,7]
[314116635,1707996635318,-500.0,0.00039999,7]
[314116636,1707996635328,-500.0,0.00039999,7]
[314116637,1707996635338,-500.0,0.00039999,7]
[314116638,1707996635348,-529.78529003,0.00039999,7]
[314116639,1707996635358,-500.0,0.00039999,7]
[314116640,1707996635369,-571.20918759,0.00039999,7]
[314116641,1707996635379,-500.0,0.00039999,7]
[314116642,1707996635390,-543.99501572,0.00039999,7]
[314116643,1707996635400,-534.97084919,0.00039999,7]
[314116644,1707996635409,-500.0,0.00039999,7]
[314116645,1707996635419,-500.0,0.00039999,7]
[314116646,1707996635428,-500.0,0.00039999,7]
[314116647,1707996635441,-500.0,0.00039999,7]
[314116648,1707996635483,-215.64737407,0.00039999,7]
[314116649,1707996635493,-557.00971417,0.00039999,7]
[314116650,1707996635503,-500.0,0.00039999,7]
[314116651,1707996635514,-542.55336438,0.00039999,7]
[314116652,1707996635524,-500.0,0.00039999,7]
[314116653,1707996635534,-500.0,0.00039999,7]
[314116654,1707996635545,-500.0,0.00039999,7]
[314116655,1707996635555,-500.0,0.00039999,7]
[314116656,1707996635565,-500.0,0.00039999,7]
[314116657,1707996635575,-500.0,0.00039999,7]
[314116658,1707996635585,-500.0,0.00039999,7]
[314116659,1707996635595,-548.24309128,0.00039999,7]
[314116660,1707996635605,-500.0,0.00039999,7]
[314116661,1707996635616,-500.0,0.00039999,7]
[314116662,1707996635625,-521.97,0.00039999,7]
[314116663,1707996635634,-500.0,0.00039999,7]
[314116664,1707996635644,-500.0,0.00039999,7]
[314116665,1707996635654,-500.0,0.00039999,7]
[314116666,1707996635664,-552.66130397,0.00039999,7]
[314116667,1707996635674,-500.0,0.00039999,7]
[314116668,1707996635684,-500.0,0.00039999,7]
[314116669,1707996635694,-500.0,0.00039999,7]
[314116670,1707996635704,-500.0,0.00039999,7]
[314116671,1707996635713,-500.0,0.00039999,7]
[314116672,1707996635723,-500.0,0.00039999,7]
[314116673,1707996635880,-500.0,0.00039999,7]
[314116674,1707996635890,-211.9,0.00039999,7]
[314116675,1707996635900,-500.0,0.00039999,7]
[314116676,1707996635910,-500.0,0.00039999,7]
[314116677,1707996635921,-608.15,0.00039999,7]
[314116678,1707996635930,-500.0,0.00039999,7]
[314116679,1707996635940,-534.17864281,0.00039999,7]
[314116680,1707996635950,-500.0,0.00039999,7]
[314116681,1707996635960,-500.0,0.00039999,7]
[314116682,1707996635970,-534.06244812,0.00039999,7]
[314116683,1707996635981,-500.0,0.00039999,7]
[314116684,1707996635991,-528.03,0.00039999,7]
[314116685,1707996636000,-500.0,0.00039999,7]
[314116686,1707996636010,-500.0,0.00039999,7]
[314116687,1707996636019,-500.0,0.00039999,7]
[314116688,1707996636028,-500.0,0.00039999,7]
[314116689,1707996636037,-500.0,0.00039999,7]
[314116690,1707996636046,-500.0,0.00039999,7]
[314116691,1707996636055,-500.0,0.00039999,7]
[314116692,1707996636065,-500.0,0.00039999,7]
[314116693,1707996636074,-500.0,0.00039999,7]
[314116694,1707996636083,-500.0,0.00039999,7]
[314116695,1707996636092,-596.54,0.00039999,7]
[314116696,1707996636102,-500.0,0.00039999,7]
[314116697,1707996636111,-500.0,0.00039999,7]
[314116698,1707996636120,-500.0,0.00039999,7]
[314116699,1707996636129,-500.0,0.00039999,7]
[314116700,1707996636138,-500.0,0.00039999,7]
[314116701,1707996636147,-549.64994365,0.00039999,7]
[314116702,1707996636157,-500.0,0.00039999,7]
[314116703,1707996636166,-500.0,0.00039999,7]
[314116704,1707996636175,-553.33903422,0.00039999,7]
[314116705,1707996636184,-595.23,0.00039999,7]
[314116706,1707996636194,-500.0,0.00039999,7]
[314116707,1707996636203,-478.47010479,0.00039999,7]
[314116708,1707996636213,-537.79944241,0.00039999,7]
[314116709,1707996636223,-375.22720687,0.00039999,7]
[314116710,1707996636235,-500.0,0.00039999,7]
[314116711,1707996636245,-500.0,0.00039999,7]
[314116712,1707996636255,-500.0,0.00039999,7]
[314116713,1707996636264,-569.77,0.00039999,7]
[314116714,1707996636275,-500.0,0.00039999,7]
[314116715,1707996636284,-500.0,0.00039999,7]
[314116716,1707996636293,-500.0,0.00039999,7]
[314116717,1707996636302,-500.0,0.00039999,7]
[314116718,1707996636312,-500.0,0.00039999,7]
[314116719,1707996636321,-500.0,0.00039999,2]
[314116720,1707996636331,-500.0,0.00039999,7]
[314116721,1707996636340,-500.0,0.00039999,7]
[314116722,1707996636349,-500.0,0.00039999,7]
[314116723,1707996636358,-500.0,0.00039999,7]
[314116724,1707996636367,-500.0,0.00039999,120]
[314116725,1707996636377,-500.0,0.00039999,7]
[314116726,1707996636388,-500.0,0.00039999,7]
[314116727,1707996636398,-500.0,0.00039999,7]
[314116728,1707996636407,-500.0,0.00039999,7]
[314116729,1707996636417,-562.43,0.00039999,7]
[314116730,1707996636426,-500.0,0.00039999,7]
[314116731,1707996636436,-500.0,0.00039999,7]
[314116732,1707996636445,-245.09,0.00039999,7]
[314116733,1707996636454,-500.0,0.00039999,7]
[314116734,1707996636464,-500.0,0.00039999,7]
[314116735,1707996636474,-2835.77,0.0004,14]
[314116736,1707996636484,-1000.0,0.0004,2]
[314116737,1707996636494,-176.25291152,0.0004,120]
[314116738,1707996636504,-209.47,0.0004,7]
[314116739,1707996636513,-326.33,0.0004,7]
[314116740,1707996636523,-1790.66,0.0004,5]
[314116741,1707996636532,-1729.43925592,0.0004002,10]
[314116742,1707996636541,-5000.0,0.0004003,3]
[314116743,1707996636551,-1729.43925592,0.00040119,10]
[314116744,1707996636560,-3458.87851184,0.0004012,10]
[314116745,1707996636570,-546.74,0.00040121,2]
[314116746,1707996636580,-551.44,0.00040128,7]
[314116747,1707996636589,-500.0,0.00040129,7]
[314116748,1707996636599,-898.28,0.00040129,7]
[314116749,1707996636608,-322.05,0.00040129,7]
[314116750,1707996636617,-500.0,0.00040129,7]
[314116751,1707996636626,-523.38,0.00040129,7]
[314116752,1707996636636,-500.0,0.00040129,7]
[314116753,1707996636645,-500.0,0.00040129,7]
[314116754,1707996636655,-500.0,0.00040129,7]
[314116755,1707996636664,-500.0,0.00040129,7]
[314116756,1707996636674,-500.0,0.00040129,7]
[314116757,1707996636684,-500.0,0.00040129,7]
[314116758,1707996636693,-500.0,0.00040129,7]
[314116759,1707996636702,-282.51,0.00040129,7]
[314116760,1707996636711,-500.0,0.00040129,7]
[314116761,1707996636720,-500.0,0.00040129,7]
[314116762,1707996636731,-500.0,0.00040129,7]
[314116763,1707996636741,-523.32,0.00040129,7]
[314116764,1707996636750,-500.0,0.00040129,7]
[314116765,1707996636759,-662.96,0.00040129,7]
[314116766,1707996636768,-500.0,0.00040129,7]
[314116767,1707996636779,-500.0,0.00040129,7]
[314116768,1707996636788,-500.0,0.00040129,7]
[314116769,1707996636798,-500.0,0.00040129,7]
[314116770,1707996636807,-371.32,0.00040129,7]
[314116771,1707996636816,-500.0,0.00040129,7]
[314116772,1707996636828,-500.0,0.00040129,7]
[314116773,1707996636838,-231.74,0.00040129,7]
[314116774,1707996636847,-500.0,0.00040129,7]
[314116775,1707996636856,-500.0,0.00040129,7]
[314116776,1707996636865,-500.0,0.00040129,7]
[314116777,1707996636876,-500.0,0.00040129,7]
[314116778,1707996636885,-500.0,0.00040129,7]
[314116779,1707996636894,-500.0,0.00040129,7]
[314116780,1707996636904,-500.0,0.00040129,7]
[314116781,1707996636913,-500.0,0.0004013,7]
[314116782,1707996636922,-500.0,0.0004013,7]
[314116783,1707996636932,-500.0,0.0004013,7]
[314116784,1707996636942,-500.0,0.0004013,7]
[314116785,1707996636951,-500.0,0.0004013,7]
[314116786,1707996636960,-500.0,0.0004013,7]
[314116787,1707996636969,-500.0,0.0004013,7]
[314116788,1707996636978,-500.0,0.0004013,7]
[314116789,1707996636987,-500.0,0.0004013,7]
[314116790,1707996636996,-500.0,0.0004013,7]
[314116791,1707996637005,-500.0,0.0004013,7]
[314116792,1707996637014,-500.0,0.0004013,7]
[314116793,1707996637023,-500.0,0.0004013,7]
[314116794,1707996637032,-3854.04,0.0004013,7]
[314116795,1707996637041,-500.0,0.0004013,7]
[314116796,1707996637050,-947.51,0.00040137,2]
[314116797,1707996637060,-457.75,0.00040137,2]
[314116798,1707996637069,-1729.43925592,0.00040163,10]
[314116799,1707996637078,-3736.36226113,0.00040173,14]
[314116800,1707996637086,-1000.0,0.00040196,10]
[314116801,1707996637103,-500.0,0.0004024,10]
[314116802,1707996637115,-175.91156418,0.00040242,9]
[314116803,1707996637125,-151.021518,0.00040248,18]
[314116804,1707996637135,-151.021518,0.00040248,18]
[314116805,1707996637145,-5188.31776776,0.00040263,10]
[314116806,1707996637154,-156.04193556,0.00040263,30]
[314116807,1707996637163,-1729.43925592,0.00040265,10]
[314116808,1707996637173,-759.01,0.00040273,7]
[314116809,1707996637183,-500.0,0.00040273,7]
[314116810,1707996637192,-500.0,0.00040273,7]
[314116811,1707996637201,-214.9,0.00040273,7]
[314116812,1707996637211,-500.0,0.00040273,7]
[314116813,1707996637220,-500.0,0.00040273,7]
[314116814,1707996637231,-500.0,0.00040273,7]
[314116815,1707996637240,-500.0,0.00040273,7]
[314116816,1707996637249,-258.96,0.00040273,7]
[314116817,1707996637258,-500.0,0.00040273,7]
[314116818,1707996637268,-500.0,0.00040273,7]
[314116819,1707996637277,-500.0,0.00040273,7]
[314116820,1707996637286,-178.96,0.00040273,7]
[314116821,1707996637295,-500.0,0.00040273,7]
[314116822,1707996637304,-257.69638813,0.00040273,7]
[314116823,1707996637313,-512.15,0.00040273,7]
[314116824,1707996637323,-500.0,0.00040273,7]
[314116825,1707996637332,-500.0,0.00040273,7]
[314116826,1707996637341,-193.16804422,0.00040273,7]
[314116827,1707996637351,-346.95,0.00040273,7]
[314116828,1707996637360,-302.81058849,0.00040273,7]
[314116829,1707996637369,-500.0,0.00040273,7]
[314116830,1707996637378,-500.0,0.00040273,7]
[314116831,1707996637388,-500.0,0.00040273,7]
[314116832,1707996637397,-500.0,0.00040273,7]
[314116833,1707996637407,-528.03,0.00040273,7]
[314116834,1707996637417,-500.0,0.00040273,7]
[314116835,1707996637426,-518.65,0.00040273,7]
[314116836,1707996637436,-589.43,0.00040273,7]
[314116837,1707996637446,-500.0,0.00040273,7]
[314116838,1707996637456,-607.84,0.00040273,7]
[314116839,1707996637465,-500.0,0.00040273,7]
[314116840,1707996637474,-500.0,0.00040273,7]
[314116841,1707996637484,-500.0,0.00040273,7]
[314116842,1707996637493,-281.56,0.00040273,7]
[314116843,1707996637503,-500.0,0.00040273,7]